Cogmind - Beta 16 @@@ ROGUE MODE // 2025.11.07 @ 19:23:28 Player: pointone Result: Self-destructed Performance ------------- Evolutions (2) 1000 Regions Visited (5) 1000 Robots Destroyed (21) 105 Value Destroyed (419) 419 Prototype IDs (25) 500 Alien Tech Used (0) 0 Bonus (300) 300 TOTAL SCORE: 3324 Bonus ------- Aligned with FarCom 300 Cogmind --------- Core Integrity 512/550 Matter 158/300 Energy 78/100 System Corruption 6% Temperature Cool (0) Movement Treading (160) Location -8/Materials Parts ------- > --- POWER (1) -------- (None) > --- PROPULSION (4) --- Light Treads Light Treads > --- UTILITY (4) ------ Improved Heat Sink Large Storage Unit Layered Light Armor Plating > --- WEAPON (2) ------- Slug Cannon Hammer > --- INVENTORY (15) --- Improved Deuterium Engine Improved Deuterium Engine Scrap Suit Large Storage Unit Huge Storage Unit Experimental Sensor Array Layered Light Armor Plating Layered Light Armor Plating Layered Light Armor Plating Pulse Rifle Firepult Flak Cannon Grenade Launcher Peak State ------------ > --- POWER ------------ Improved Deuterium Engine > --- PROPULSION ------- Light Treads Light Treads Light Treads > --- UTILITY ---------- Improved Heat Sink Large Storage Unit Layered Light Armor Plating > --- WEAPON ----------- Slug Cannon Hammer > --- INVENTORY -------- Improved Deuterium Engine Improved Deuterium Engine Scrap Suit Large Storage Unit Huge Storage Unit Experimental Sensor Array Layered Light Armor Plating Layered Light Armor Plating Layered Light Armor Plating Pulse Rifle Firepult Grenade Launcher [Rating: 26] Favorites ----------- Power Improved Ion Engine Engine Improved Ion Engine Propulsion Light Treads Treads Light Treads Utility Improved Heat Sink Device Improved Heat Sink Storage Medium Storage Unit Protection Layered Light Armor Plating Weapon Beam Rifle Energy Gun Beam Rifle Energy Cannon Beam Cannon Ballistic Gun Autogun Ballistic Cannon Slug Cannon Launcher Grenade Launcher Impact Weapon Hammer Build | -11 -10 -10 -10 -9 -8 ------- Run | Yrd Mat Min Exi Min Mat Slots Evolved 4 | . . . . . 4 Power . | . . . . . . Propulsion 2 | . . . . . 2 Utility 2 | . . . . . 2 Weapon . | . . . . . . Parts Attached 22 | 6 7 4 . . 5 Power 4 | 1 1 1 . . 1 Engine 4 | 1 1 1 . . 1 Core . | . . . . . . Reactor . | . . . . . . Propulsion 4 | 2 . 1 . . 1 Treads 4 | 2 . 1 . . 1 Leg . | . . . . . . Wheel . | . . . . . . Hover . | . . . . . . Flight . | . . . . . . Utility 6 | 1 3 . . . 2 Device 1 | . 1 . . . . Storage 4 | 1 2 . . . 1 Processor . | . . . . . . Hackware . | . . . . . . Protection 1 | . . . . . 1 Artifact . | . . . . . . Weapon 8 | 2 3 2 . . 1 Energy Gun 3 | 2 . 1 . . . Energy Cannon 1 | . 1 . . . . Ballistic Gun 1 | . 1 . . . . Ballistic Cannon 1 | . . 1 . . . Launcher 1 | . 1 . . . . Special Weapon . | . . . . . . Impact Weapon 1 | . . . . . 1 Slashing Weapon . | . . . . . . Piercing Weapon . | . . . . . . Special Melee Weapon . | . . . . . . Unidentified Prototypes . | . . . . . . Parts Lost 5 | . 2 . . . 3 Power 2 | . 1 . . . 1 Propulsion 1 | . . . . . 1 Utility . | . . . . . . Weapon 2 | . 1 . . . 1 Highest Loss Streak 3 | . 1 . . . 3 To Critical Strikes . | . . . . . . Average Backups 8 | 2 6 9 8 8 9 Power 1 | 1 1 1 1 1 1 Propulsion . | . . 1 1 1 . Utility 3 | . 1 3 3 3 4 Weapon 3 | . 3 3 3 3 3 Tool/Special . | . . . . . . Unused Backups 17 | . 3 . 2 . 12 Power 4 | . . . . . 4 Propulsion . | . . . . . . Utility 7 | . . . 1 . 6 Weapon 6 | . 3 . 1 . 2 Tool/Special . | . . . . . . Average Slot Usage (%) 92 | . 97 100 100 100 72 Engine 12 | . 14 14 14 14 8 Treads 27 | . 28 28 28 28 24 Device 12 | . 12 14 14 14 9 Storage 12 | . 14 14 14 14 9 Energy Gun 10 | . 5 10 14 14 8 Energy Cannon 2 | . 10 3 . . . Ballistic Gun 3 | . 8 10 . . . Ballistic Cannon 6 | . . 2 14 14 4 Impact Weapon 1 | . . . . . 5 Peak Build Rating 26 | 6 11 16 18 18 26 Average Rating 15 | 4 9 13 17 18 19 On Entrance 11 | . 6 11 16 18 18 Avg Prop Armor Cover (%) . | . . . . . . Naked Turns . | . . . . . . Heaviest Build 44 | 12 20 28 28 28 44 Greatest Support 60 | 40 40 40 40 40 60 Greatest Overweight (x) . | . . . . . . Average Overweight (x) . | . . . . . . Largest Inventory Capacity 25 | 8 25 10 10 10 25 Average Capacity 10 | 6 8 10 10 10 12 Most Carried 15 | 5 10 10 10 10 15 Average Carried 9 | 2 6 9 9 10 11 Final Capacity 15 | 8 10 10 10 10 15 Final Carried 15 | 2 10 10 10 10 15 Class Distribution -------------------- 100% | Mutant Dominant Class ---------------- Mutant | -10/Materials Mutant | -10/Mines Mutant | -10/Exiles Mutant | -9/Mines Mutant | -8/Materials Resources | -11 -10 -10 -10 -9 -8 ----------- Run | Yrd Mat Min Exi Min Mat Matter Collected 526 | 253 132 39 . 41 61 Remotely . | . . . . . . Salvage Created 497 | . 376 23 . 37 61 Parts 36 | . 21 6 . 3 6 Haulers Intercepted 1 | . 1 . . . . Recyclers Shooed . | . . . . . . Parts Field Recycled . | . . . . . . Retrieved Matter . | . . . . . . Parts Self-Destructed . | . . . . . . Prevented . | . . . . . . Parts Restored . | . . . . . . Kills | -11 -10 -10 -10 -9 -8 ------- Run | Yrd Mat Min Exi Min Mat Combat Hostiles Destroyed 17 | . 8 3 . 2 4 Guns 7 | . 3 . . 1 3 Cannons 3 | . 2 . . 1 . AOE 6 | . 3 3 . . . Classes Destroyed 6 | . 5 1 . . . Worker 1 | . . 1 . . . Hauler 1 | . 1 . . . . Recycler 1 | . 1 . . . . Watcher 1 | . 1 . . . . Swarmer 10 | . 3 3 . . 4 Grunt 7 | . 5 . . 2 . Best Kill Streak 4 | . 4 4 . 2 4 Combat Bots Only 4 | . 3 3 . 2 4 Max Kills in Single Turn 2 | . 2 2 . 1 1 Gunslinging . | . . . . . . Exploded 2 | . 2 2 . . . Melee . | . . . . . . Uniques/NPCs Destroyed . | . . . . . . Combat | -11 -10 -10 -10 -9 -8 -------- Run | Yrd Mat Min Exi Min Mat Hostile Shots Fired 90 | . 30 13 . 17 30 Missed 29 | . 7 2 . 4 16 Hits 61 | . 23 11 . 13 14 Projectile 61 | . 23 11 . 13 14 Part Disruptions 1 | . . . . . 1 Damage Taken 1003 | . 317 90 . 169 427 Core 126 | . 38 23 . 27 38 Absorbed by Shields . | . . . . . . Regen/Repaired (Parts) 175 | . . . . . 175 Core Remaining (%) 82 | 100 . . . 64 . Volleys Fired 43 | . 19 2 . 9 13 Largest 2 | . 2 1 . 2 1 Hottest 96 | . 83 30 . 96 56 Shots Fired 67 | . 34 2 . 18 13 Gun 35 | . 22 . . 9 4 Cannon 28 | . 10 . . 9 9 Launcher 4 | . 2 2 . . . Special . | . . . . . . Kinetic 28 | . 10 . . 9 9 Thermal 23 | . 10 . . 9 4 Explosive 4 | . 2 2 . . . Electromagnetic 12 | . 12 . . . . Robot Hit Streak 6 | . 5 . . 6 1 Robot Miss Streak 7 | . 4 . . 3 7 Penetration Max . | . . . . . . Secondary Targets . | . . . . . . Shots Hit Robots 30 | . 16 . . 10 4 Core Hits 22 | . 12 4 . 3 3 Critical Kills . | . . . . . . Critical Parts Destroyed 1 | . . . . 1 . Critical Strikes 1 | . . . . 1 . Destroy 1 | . . . . 1 . Melee Attacks 12 | . . . . . 12 Impact 12 | . . . . . 12 Slashing . | . . . . . . Piercing . | . . . . . . Sneak Attacks . | . . . . . . Combat Hostiles . | . . . . . . Follow-up Attacks . | . . . . . . Damage Inflicted 1005 | . 450 192 . 225 138 Guns 270 | . 154 . . 72 44 Cannons 313 | . 86 . . 153 74 Explosions 402 | . 210 192 . . . Melee 20 | . . . . . 20 Ramming . | . . . . . . Kinetic 277 | . 50 . . 153 74 Thermal 292 | . 176 . . 72 44 Explosive 312 | . 120 192 . . . Electromagnetic 104 | . 104 . . . . Impact 20 | . . . . . 20 Slashing . | . . . . . . Piercing . | . . . . . . Highest Corruption 6 | . . . . . 6 Average Corruption 5 | . . . . . 5 Corruption Purged . | . . . . . . Corruption Blocked . | . . . . . . Effects 2 | . . . . . 2 Heat Flow Errors 1 | . . . . . 1 Energy Discharges 1 | . . . . . 1 Overload Shots . | . . . . . . Overflow Damage 33 | . 13 . . 12 8 Projectiles 12 | . . . . 12 . Explosions 21 | . 13 . . . 8 Melee . | . . . . . . Knockbacks 2 | . . . . 1 1 Impact . | . . . . . . Kinetic 2 | . . . . 1 1 Secondary . | . . . . . . Self-Inflicted Damage 162 | . 70 . . . 92 Shots 5 | . 2 . . . 3 Rammed . | . . . . . . Targets Rammed . | . . . . . . Kicked . | . . . . . . Crushed . | . . . . . . Highest Temperature 185 | . 126 . . 80 185 Average Temperature 52 | . 38 . . 55 99 Received Heat Transfer 201 | . 87 . . 96 18 Siege Activations . | . . . . . . Martial Activations . | . . . . . . Shielding Activations . | . . . . . . Robots Disrupted . | . . . . . . Combat Hostiles . | . . . . . . Robots Corrupted 1 | . . . . . 1 Combat Hostiles 1 | . . . . . 1 Parts Fried 1 | . . . . . 1 Impact Corruptions 1 | . . . . . 1 Robots Melted . | . . . . . . Combat Hostiles . | . . . . . . Parts Melted . | . . . . . . Heat Transferred 481 | . 185 . . 185 111 Parts Sabotaged . | . . . . . . Parts Stolen . | . . . . . . Parts Stripped . | . . . . . . Power Chain Reactions 3 | . 2 . . . 1 Alert | -11 -10 -10 -10 -9 -8 ------- Run | Yrd Mat Min Exi Min Mat Maximum Alert Level . | . . . . . . Low Security (%) 100 | 100 100 100 . 100 100 Level 1 . | . . . . . . Level 2 . | . . . . . . Level 3 . | . . . . . . Level 4 . | . . . . . . Level 5 . | . . . . . . High Security . | . . . . . . Max Security . | . . . . . . Peak Influence 117 | . 117 94 . 42 80 Initial 9 | . . 9 . . . Average 32 | . 62 28 . 16 13 Influence Increases 560 | . 265 85 . 52 158 Destroy 0b10 Robot/C 340 | . 160 60 . 40 80 Destroy 0b10 Robot/NC 20 | . 15 5 . . . Destroy Leader 64 | . 34 10 . 10 10 Successful Hack 39 | . 14 . . . 25 Disable Machine 45 | . 15 . . . 30 Destroy Structure 37 | . 12 10 . 2 13 Lose Combat Pursuer 15 | . 15 . . . . Influence Decreases 557 | . 240 110 . 52 155 Entered New Map 16 | . . 16 . . . Time Decay 501 | . 220 94 . 52 135 Lost Part 40 | . 20 . . . 20 Squads Dispatched 3 | . 1 . . . 2 Investigation 1 | . 1 . . . . Extermination . | . . . . . . Reinforcement 2 | . . . . . 2 Assault . | . . . . . . Garrison . | . . . . . . Intercept . | . . . . . . Searches Triggered . | . . . . . . Construction Impeded . | . . . . . . Haulers Reinforced . | . . . . . . Active Scanning Responses . | . . . . . . Cargo Convoy Interrupts . | . . . . . . Stealth | -11 -10 -10 -10 -9 -8 --------- Run | Yrd Mat Min Exi Min Mat Distress Signals 1 | . . . . . 1 Communications Jammed . | . . . . . . Distress Signals . | . . . . . . Times Spotted 29 | . 14 3 . 2 10 Peak Tracking Total 6 | . 5 3 . 2 6 Tactical Retreats 1 | . 1 . . . . Traps | -11 -10 -10 -10 -9 -8 ------- Run | Yrd Mat Min Exi Min Mat Traps Triggered . | . . . . . . Indirectly . | . . . . . . Trap Hack Attempts . | . . . . . . Triggered . | . . . . . . Disarmed . | . . . . . . Reprogrammed . | . . . . . . Reused . | . . . . . . Traps Extracted . | . . . . . . Installed . | . . . . . . Triggered . | . . . . . . Machines | -11 -10 -10 -10 -9 -8 ---------- Run | Yrd Mat Min Exi Min Mat Machines Disabled 3 | . 1 . . . 2 Max in Single Turn 2 | . 1 . . . 2 Machines Repaired . | . . . . . . Machines Dismantled . | . . . . . . Machines Sabotaged . | . . . . . . Overloaded Fab Kills . | . . . . . . Hacking | -11 -10 -10 -10 -9 -8 --------- Run | Yrd Mat Min Exi Min Mat Machines Accessed 15 | . 7 . 5 . 3 Terminals 7 | . 5 . . . 2 Fabricators . | . . . . . . Repair Stations 2 | . 1 . . . 1 Recycling Units 1 | . 1 . . . . Scanalyzers . | . . . . . . Garrison Access . | . . . . . . Total Hacks 86 | . 19 . 50 . 17 Successful 71 | . 9 . 50 . 12 Failed 15 | . 10 . . . 5 Catastrophic 1 | . 1 . . . . Database Lockouts . | . . . . . . Manual 5 | . 4 . 1 . . Terminals 21 | . 12 . . . 9 Fabricators . | . . . . . . Repair Stations 12 | . 4 . . . 8 Recycling Units 3 | . 3 . . . . Scanalyzers . | . . . . . . Garrison Access . | . . . . . . Terminal Hacks 62 | . 6 . 50 . 6 Record 52 | . 3 . 49 . . Robot Analysis 1 | . 1 . . . . Prototype ID Bank 1 | . 1 . . . . Recycling Unit Index 1 | . . . . . 1 Locate Traps 1 | . 1 . . . . Dispatch Records 1 | . . . . . 1 Transport Status 1 | . . . . . 1 Assault Status 1 | . . . . . 1 Zone Layout 2 | . . . . . 2 Proto ID Catalog 1 | . . . 1 . . Fabricator Hacks . | . . . . . . Repair Station Hacks 7 | . 1 . . . 6 Scan Component 4 | . 1 . . . 3 Repair 3 | . . . . . 3 Recycling Unit Hacks 2 | . 2 . . . . Report Inventory 1 | . 1 . . . . Retrieve Components 1 | . 1 . . . . Scanalyzer . | . . . . . . Garrison Access Hacks . | . . . . . . Unauthorized Hacks . | . . . . . . Terminals . | . . . . . . Fabricators . | . . . . . . Repair Stations . | . . . . . . Recycling Units . | . . . . . . Scanalyzers . | . . . . . . Garrison Access . | . . . . . . Data Cores Recovered . | . . . . . . Used . | . . . . . . Hacking Detections 7 | . 6 . . . 1 Full Trace Events 3 | . 3 . . . . Feedback Events . | . . . . . . Feedback Blocked . | . . . . . . Robot Schematics Acquired . | . . . . . . Robots Built . | . . . . . . Authchips . | . . . . . . Time . | . . . . . . Total Robot Build Rating . | . . . . . . Part Schematics Acquired . | . . . . . . Parts Built . | . . . . . . Authchips . | . . . . . . Time . | . . . . . . Total Part Build Rating . | . . . . . . Part Studies Acquired . | . . . . . . Parts Repaired 3 | . . . . . 3 Time 78 | . . . . . 78 Parts Recycled . | . . . . . . Recycled Matter . | . . . . . . Retrieved Matter . | . . . . . . Retrieved Components 3 | . 3 . . . . Parts Scanalyzed . | . . . . . . Part Schematics Acquired . | . . . . . . Parts Damaged . | . . . . . . Bothacking | -11 -10 -10 -10 -9 -8 ------------ Run | Yrd Mat Min Exi Min Mat Used RIF Installer . | . . . . . . Robots Hacked . | . . . . . . Non-combat . | . . . . . . Combat . | . . . . . . Robot Hacks Applied . | . . . . . . Relay Couplers Released . | . . . . . . Fabnet Peak Effective % . | . . . . . . Robots Rewired . | . . . . . . Allies Hacked . | . . . . . . Hacks Repelled . | . . . . . . Allies | -11 -10 -10 -10 -9 -8 -------- Run | Yrd Mat Min Exi Min Mat Total Allies . | . . . . . . Largest Group . | . . . . . . Highest-Rated Group . | . . . . . . Highest-Rated Ally . | . . . . . . Total Orders . | . . . . . . Ally Attacks . | . . . . . . Total Damage . | . . . . . . Kills . | . . . . . . Allies Corrupted . | . . . . . . Allies Melted . | . . . . . . Intel | -11 -10 -10 -10 -9 -8 ------- Run | Yrd Mat Min Exi Min Mat Active Infowar (turns) . | . . . . . . Robot Analysis Total 1 | . 1 . . . . Derelict Logs Recovered . | . . . . . . Drone Launches . | . . . . . . Drone Recoveries . | . . . . . . Exploration | -11 -10 -10 -10 -9 -8 ------------- Run | Yrd Mat Min Exi Min Mat Turns Passed 2293 | 50 502 311 758 128 544 Spaces Moved 1287 | 31 263 183 472 64 274 Core 11 | 11 . . . . . Treads 1276 | 20 263 183 472 64 274 Legs . | . . . . . . Wheels . | . . . . . . Hover . | . . . . . . Flight . | . . . . . . Fastest Speed 50 | 50 160 160 160 160 160 Average Speed 159 | 120 160 160 160 160 160 Slowest Speed 160 | 160 160 160 160 160 160 Overloaded Moves . | . . . . . . Propulsion Burnouts . | . . . . . . Robots Hopped . | . . . . . . Potential Cave-ins . | . . . . . . Cave-ins Triggered 1 | . . . . . 1 Exploration Rate (%) 37 | 3 50 31 92 31 18 Regions Visited 5 Branch Regions 3 Pre-discovered Areas 1 | . . . 1 . . Known Exits Taken . | . . . . . . Unknown Exits Taken 5 | 1 1 1 1 1 . Scrap Searched 1 | . . 1 . . . Spaces Dug 4 | . . . . . 4 Terrain Destroyed 37 | . 12 11 . 2 12 Melee 4 | . . . . . 4 Projectile 5 | . . . . 2 3 AOE 28 | . 12 11 . . 5 Terrain Rammed . | . . . . . . Walls Destroyed . | . . . . . . Machines Disabled . | . . . . . . Actions | -11 -10 -10 -10 -9 -8 --------- Run | Yrd Mat Min Exi Min Mat Total 1448 | 43 314 198 476 72 345 Wait 28 | . 5 2 . . 21 Move 1282 | 30 262 182 471 63 274 Hop . | . . . . . . Pick Up 36 | 7 15 2 1 . 11 Fast Attach 5 | 1 . 1 . . 3 Attach 11 | 5 3 . . . 3 Detach . | . . . . . . Swap 14 | . 5 5 . . 4 Drop 15 | . 5 4 2 . 4 Fire 43 | . 19 2 . 9 13 Melee 12 | . . . . . 12 Ram . | . . . . . . Kick . | . . . . . . Crush . | . . . . . . Escape Stasis . | . . . . . . Rewire 2 | . . . 2 . . Trap . | . . . . . . Miscellaneous . | . . . . . . Route ------- -11/Scrapyard -10/Materials (discovered 3 exits: [*Mat] / [*Min x2]) -10/Mines -10/Exiles -9/Mines -8/Materials History --------- Turn | Location | Event 8 | -11/Scrapyard | Discovered new exit (range 16) 51 | -11/Scrapyard | Entered Materials 51 | -10/Materials | Discovered new exit (range 14) 319 | -10/Materials | Build established: Mutant 379 | -10/Materials | Discovered new exit (range 4) 545 | -10/Materials | Discovered new exit (range 6) 553 | -10/Materials | Entered Mines 575 | -10/Mines | Found a Scrap Suit stashed away for nefarious purposes 582 | -10/Mines | Found Scrap Suit 620 | -10/Mines | Found a damaged Exp. Sensor Array with a note attached 625 | -10/Mines | Found Prototype Device 814 | -10/Mines | A weapon hastily lodged in a ceiling crevice suddenly fell to the ground 857 | -10/Mines | Deemed a non-threat by the Exiles lab entrance 857 | -10/Mines | Discovered new exit (range 5) 864 | -10/Mines | Entered Exiles 903 | -10/Exiles | Met 8R-AWN 930 | -10/Exiles | Met EX-HEX 990 | -10/Exiles | Met EX-BIN 1016 | -10/Exiles | Aligned with FarCom system 1017 | -10/Exiles | Given EX-Vault access code 1083 | -10/Exiles | Opened EX-Vault 1095 | -10/Exiles | Found Firepult 1128 | -10/Exiles | Warned to stay clear of 0b10 Research branches 1175 | -10/Exiles | Met EX-DEC 1186 | -10/Exiles | Learned location of Zion (-7) 1273 | -10/Exiles | Visited The Gauntlet 1604 | -10/Exiles | Discovered new exit (range 14) 1622 | -10/Exiles | Left Exiles lab with Firepult 1622 | -10/Exiles | Entered Mines 1734 | -9/Mines | Discovered new exit (range 8) 1750 | -9/Mines | Entered Materials 1750 | -8/Materials | Evolved 4 slots: Propulsion x2, Utility x2 1798 | -8/Materials | Repaired Lgt. Treads? 1873 | -8/Materials | Repaired Grenade Launcher? 1957 | -8/Materials | Repaired Lgt. Treads 2232 | -8/Materials | Crushed by falling debris 2290 | -8/Materials | Lost 3 parts (1p1n1w) 2294 | -8/Materials | Self-destructed Last Messages --------------- 02251_ System corrupted: Heat flow error (+215). 02252_ Acquired Flak Cannon. 02256_ U-05 Engineer builds a Wall. 02259_ Neutrino Reactor explodes. 02259_ Chain reaction triggered in Imp. Deuterium Engine. 02259_ Lgt. Treads destroyed. 02259_ Destroyed Lgt. Treads. 02260_ ALERT: Hostiles spotted, dispatching reinforcements to Terminal M012. 02266_ U-05 Engineer lays Concrete. 02268_ U-05 Engineer builds a Wall. 02269_ U-05 Engineer lays Concrete. 02278_ K-01 Serf cleans the Nuclear Reactor. 02283_ K-01 Serf collects debris. 02284_ A-02 Transporter sends out distress signal. 02288_ U-05 Engineer lays Concrete. 02292_ System corrupted: Energy discharge (-26). 02292_ G-47 Trooper knocked back. Map ----- +----------------------------------------------------+ | | | | | | | | | | | #########????????????????????????????????????????? | | """ #????????????????????????????????????????? | | "T" #????????????????????????????????????????? | | #????????????????????????????????????????? | | *#????????????????????????????????????????? | | ###+#######??????????????????????????????????????? | | #??????##########??????????????????????? | | ##### #??????# #??????????????????????? | | #???# #??????# """###########????????????? | | #???# #??????# """# """ #????????????? | | +## #?###+####???# """# """ #????????????? | | # #?# #???# # """ ##???????????? | | # #?# #???# """# /u???????????? | | # ### #???# """# ! ##???????????? | | # # #???# """# ! ! #????????????? | | # # ##??# # !a #????????????? | | # # "#??#####+#### g ! #????????????? | | ### ###+########## ###g;;#########?????????? | | #?????????? | | T #?????????? | | a@ ^ #?????????? | | ####+############### ########### ???????????? | | ############ xx##?????????# ???????????? | | """ !## # m #??????????# ???????????? | | "R" ## # #??????????# ???????????? | | " " """ # ! + ##########?# ???????????? | | """ # # # #?# ???????????? | | """ # # # ### ???????????? | | ] = ## # # ## ???????????? | | ## # # ## ???????????? | | ########### # # ## Y???????????? | | ??????????########### # ## ???????????? | | ????????????????????# + ## ???????????? | | ????????????????????# # #####???????????? | | ????????????????????# # #???????????????? | | ????????????????????# #????????????????????????? | | ???????????????????? ????????????????????????? | | ????????????????????? ????????????????????????? | | ?????????????????????"" ????????????????????????? | | ??????????????????????? ?????????????????????????? | | ?????????????????????????????????????????????????? | | ?????????????????????????????????????????????????? | | ?????????????????????????????????????????????????? | | ?????????????????????????????????????????????????? | | ?????????????????????????????????????????????????? | +----------------------------------------------------+ Best States ------------- Heat Dissipation 45 Energy Generation 16 Energy Capacity 290 Matter Stores 300 Matter Capacity 300 Sight Range 16 Terrain Scan Density 10 Armor Coverage 150 Evasion (%) 50 Recoil Reduction 3 Item Schematics ----------------- None Robot Schematics ------------------ None Fabricated ------------ Nothing Repaired ---------- Lgt. Treads | 28% | -8/Materials Grenade Launcher | 60% | -8/Materials Lgt. Treads | 63% | -8/Materials Studied --------- None Alien Tech Used ----------------- None Achievements -------------- One Hack Too Far Sixth Sense Unlikely Earthworm Challenges ------------ None Game ------ Seed MyomerVisualMace Manual? 0 Play Time 00:36:01 Cumulative 4.7 hours Start 2025.11.07 @ 18:46:42 End 2025.11.07 @ 19:23:28 Sessions 1 Manual Loads 0 Difficulty Rogue Special Mode None Game No. 4 Rogue 4 Adventurer 0 Explorer 0 Win Type - Total 0 Types 0/0/0/0/0/0/0/0/0/0 Lore% 10 Gallery% 7 Achievement% 8 Wizard Run 0 Options --------- Layout 1 ASCII 0 Keyboard 0 Movement Mouse Keybinds 0 Fullscreen 1 Font 48/SmallcapsGlow++ Map View 50x35 Zoom Use 0% Tactical HUD 1 Map Filters NONE Filters NONE Steam 0 RUN: 5dc49e5b-eba2-4f96-bc8d-a20228c9939b